[Event "36th European Club Cup 2021"]
[Site "Struga"]
[Date "2021.09.20"]
[Round "3.58"]
[White "Boidman, Yuri"]
[Black "Skuhala, Jernej"]
[Result "1/2-1/2"]
[ECO "B10"]
[WhiteElo "2318"]
[BlackElo "2351"]
[Annotator "NA"]
[PlyCount "109"]
[EventDate "2021.09.18"]
[EventType "team-tourn"]
[EventCountry "MKD"]
[SourceTitle "playchess.com"]
[Source "ChessBase"]
[SourceQuality "1"]
[TimeControl "40/5400+30:1800+30"]

1. e4 {[%emt 0:00:08]} c6 {[%emt 0:00:01]} 2. Nf3 {[%emt 0:00:42]} d5 {[%emt 0:
00:10]} 3. d3 {[%emt 0:00:22]} dxe4 {[%emt 0:00:39]} 4. dxe4 {[%emt 0:00:09]}
Qxd1+ {[%emt 0:00:04]} 5. Kxd1 {[%emt 0:00:16]} Bg4 {[%emt 0:00:04]} 6. Be2 {
[%emt 0:00:27]} Nd7 {[%emt 0:00:38]} 7. Nfd2 {[%emt 0:00:49]} Bxe2+ {[%emt 0:
02:45]} 8. Kxe2 {[%emt 0:00:11]} e5 {[%emt 0:00:04]} 9. a4 {[%emt 0:01:27]} Nc5
{[%emt 0:01:27]} 10. c3 {[%emt 0:08:13]} Nf6 {[%emt 0:03:41]} 11. f3 {[%emt 0:
01:03]} Nfd7 {[%emt 0:00:40]} 12. b4 {[%emt 0:01:50]} Ne6 {[%emt 0:02:08]} 13.
Nc4 {[%emt 0:02:16]} f6 {[%emt 0:26:24]} 14. Rd1 {[%emt 0:05:53]} Nb6 {[%emt 0:
03:13]} 15. Na5 {[%emt 0:05:35]} Rb8 {[%emt 0:02:57]} 16. Be3 {[%emt 0:06:36]}
c5 {[%emt 0:00:41]} 17. b5 {[%emt 0:02:36]} Be7 {[%emt 0:01:08]} 18. Nd2 {
[%emt 0:00:58]} Kf7 {[%emt 0:03:59]} 19. Ndc4 {[%emt 0:06:56]} Nxc4 {[%emt 0:
00:31]} 20. Nxc4 {[%emt 0:00:08]} Rhd8 {[%emt 0:00:02]} 21. g3 {[%emt 0:03:51]}
Rxd1 {[%emt 0:02:28]} 22. Rxd1 {[%emt 0:00:15]} Rd8 {[%emt 0:01:02]} 23. Rd5 {
[%emt 0:07:14]} g5 {[%emt 0:22:43]} 24. Na5 {[%emt 0:05:10]} b6 {[%emt 0:07:12]
} 25. Nc6 {[%emt 0:01:30]} Rxd5 {[%emt 0:00:05]} 26. exd5 {[%emt 0:00:09]} Nc7
{[%emt 0:00:01]} 27. c4 {[%emt 0:06:08]} a5 {[%emt 0:02:36]} 28. Bd2 {[%emt 0:
06:18]} Ne8 {[%emt 0:02:06]} 29. Kd3 {[%emt 0:06:39]} Nd6 {[%emt 0:02:23]} 30.
Nxa5 {[%emt 0:04:14]} bxa5 {[%emt 0:00:15]} 31. Bxa5 {[%emt 0:00:02]} f5 {
[%emt 0:00:01]} 32. Bd2 {[%emt 0:03:33]} e4+ {[%emt 0:02:01]} 33. fxe4 {
[%emt 0:00:23]} fxe4+ {[%emt 0:00:01]} 34. Kc3 {[%emt 0:01:11]} Bd8 {[%emt 0:
00:08]} 35. Kb3 {[%emt 0:02:10]} Nb7 {[%emt 0:00:01]} 36. g4 {[%emt 0:00:38]}
Na5+ {[%emt 0:00:14]} 37. Kc3 {[%emt 0:00:40]} Bf6+ {[%emt 0:00:28]} 38. Kc2 {
[%emt 0:00:02]} Nxc4 {[%emt 0:00:07]} 39. Be1 {[%emt 0:01:12]} Bd8 {[%emt 0:00:
11]} 40. Bf2 {[%emt 0:00:00]} Nb6 {[%emt 0:00:00]} 41. a5 {[%emt 0:02:49]} Nxd5
{[%emt 0:02:47]} 42. b6 {[%emt 0:00:18]} Nxb6 {[%emt 0:00:39]} 43. axb6 {
[%emt 0:00:24]} Bxb6 {[%emt 0:00:02]} 44. Kc3 {[%emt 0:00:43]} Ke6 {[%emt 0:01:
24]} 45. Kc4 {[%emt 0:00:02]} Ba7 {[%emt 0:01:29]} 46. h3 {[%emt 0:01:00]} h6 {
[%emt 0:07:17]} 47. Bg1 {[%emt 0:00:12]} Bb6 {[%emt 0:12:19]} 48. Bf2 {[%emt 0:
00:41]} Ba7 {[%emt 0:04:35]} 49. Bg1 {[%emt 0:02:58]} Ke5 {[%emt 0:01:51]} 50.
Bh2+ {[%emt 0:00:26]} Kf6 {[%emt 0:00:15]} 51. Bg1 {[%emt 0:01:10]} Ke6 {
[%emt 0:06:16]} 52. Bf2 {[%emt 0:00:30]} Bb8 {[%emt 0:03:03]} 53. Bxc5 {
[%emt 0:00:17]} Be5 {[%emt 0:00:56]} 54. Bf8 {[%emt 0:02:50]} Kf7 {[%emt 0:00:
05]} 55. Bc5 {[%emt 0:03:27]} 1/2-1/2

[Event "36th European Club Cup 2021"]
[Site "Struga"]
[Date "2021.09.20"]
[Round "3.59"]
[White "Buzeti, Jernej"]
[Black "Dardha, Arben"]
[Result "1/2-1/2"]
[ECO "B30"]
[WhiteElo "2236"]
[BlackElo "2253"]
[Annotator "NA"]
[PlyCount "100"]
[EventDate "2021.09.18"]
[EventType "team-tourn"]
[EventCountry "MKD"]
[SourceTitle "playchess.com"]
[Source "ChessBase"]
[SourceQuality "1"]
[TimeControl "40/5400+30:1800+30"]

1. e4 {[%emt 0:00:09]} c5 {[%emt 0:00:05]} 2. Nf3 {[%emt 0:00:07]} Nc6 {
[%emt 0:00:03]} 3. Nc3 {[%emt 0:00:49]} e5 {[%emt 0:00:09]} 4. Bc4 {[%emt 0:01:
27]} d6 {[%emt 0:00:15]} 5. d3 {[%emt 0:00:29]} Be7 {[%emt 0:00:12]} 6. O-O {
[%emt 0:00:25]} Nf6 {[%emt 0:00:29]} 7. Ng5 {[%emt 0:01:16]} O-O {[%emt 0:00:
21]} 8. f4 {[%emt 0:00:21]} h6 {[%emt 0:00:39]} 9. Nf3 {[%emt 0:00:49]} exf4 {
[%emt 0:00:35]} 10. Bxf4 {[%emt 0:00:29]} Be6 {[%emt 0:00:47]} 11. Nd5 {
[%emt 0:30:28]} Bxd5 {[%emt 0:16:00]} 12. exd5 {[%emt 0:00:46]} Nd4 {[%emt 0:
06:15]} 13. Nxd4 {[%emt 0:07:51]} cxd4 {[%emt 0:00:44]} 14. Qf3 {[%emt 0:00:14]
} Qd7 {[%emt 0:05:42]} 15. a4 {[%emt 0:06:03]} a6 {[%emt 0:01:45]} 16. Rae1 {
[%emt 0:01:57]} Rae8 {[%emt 0:02:19]} 17. Bb3 {[%emt 0:11:25]} Nh7 {[%emt 0:14:
37]} 18. Qg3 {[%emt 0:14:30]} Kh8 {[%emt 0:01:56]} 19. h3 {[%emt 0:04:14]} Rd8
{[%emt 0:08:53]} 20. Re2 {[%emt 0:02:55]} Bf6 {[%emt 0:06:07]} 21. Rfe1 {
[%emt 0:00:40]} Rg8 {[%emt 0:04:20]} 22. Kh2 {[%emt 0:04:27]} Nf8 {[%emt 0:11:
16]} 23. Qf3 {[%emt 0:02:00]} Qf5 {[%emt 0:04:49]} 24. Qe4 {[%emt 0:02:16]}
Qxe4 {[%emt 0:03:18]} 25. Rxe4 {[%emt 0:00:30]} Ng6 {[%emt 0:00:38]} 26. Bd2 {
[%emt 0:00:34]} Be5+ {[%emt 0:00:34]} 27. Kh1 {[%emt 0:00:18]} f5 {[%emt 0:00:
43]} 28. R4e2 {[%emt 0:00:10]} Bg3 {[%emt 0:01:37]} 29. Rf1 {[%emt 0:00:32]} f4
{[%emt 0:04:39]} 30. Re6 {[%emt 0:01:57]} Kh7 {[%emt 0:01:19]} 31. Ba5 {
[%emt 0:00:51]} Rd7 {[%emt 0:00:46]} 32. Be1 {[%emt 0:01:17]} Bxe1 {[%emt 0:01:
23]} 33. Rfxe1 {[%emt 0:00:02]} Ne5 {[%emt 0:00:14]} 34. Re4 {[%emt 0:02:06]}
Rf8 {[%emt 0:00:09]} 35. Rxd4 {[%emt 0:00:49]} f3 {[%emt 0:00:11]} 36. gxf3 {
[%emt 0:00:20]} Rxf3 {[%emt 0:00:20]} 37. Re4 {[%emt 0:02:19]} Rdf7 {[%emt 0:
00:41]} 38. R6xe5 {[%emt 0:00:58]} dxe5 {[%emt 0:01:01]} 39. Rxe5 {[%emt 0:00:
32]} R7f6 {[%emt 0:02:05]} 40. Kg2 {[%emt 0:00:00]} Rf2+ {[%emt 0:00:00]} 41.
Kg1 {[%emt 0:03:36]} R2f4 {[%emt 0:04:40]} 42. Re2 {[%emt 0:03:14]} h5 {
[%emt 0:03:32]} 43. c3 {[%emt 0:09:01]} Rf3 {[%emt 0:02:10]} 44. Kg2 {[%emt 0:
00:41]} h4 {[%emt 0:00:11]} 45. d4 {[%emt 0:01:02]} Rg3+ {[%emt 0:00:37]} 46.
Kh2 {[%emt 0:00:28]} Rff3 {[%emt 0:07:34]} 47. d6 {[%emt 0:04:33]} Rxh3+ {
[%emt 0:00:08]} 48. Kg2 {[%emt 0:00:04]} Rhg3+ {[%emt 0:01:50]} 49. Kh2 {
[%emt 0:00:12]} Rh3+ {[%emt 0:10:19]} 50. Kg2 {[%emt 0:00:24]} Rhg3+ {[%emt 0:
03:36]} 1/2-1/2

[Event "36th European Club Cup 2021"]
[Site "Struga"]
[Date "2021.09.20"]
[Round "3.60"]
[White "Jeitz, Christian"]
[Black "Bratkovic, Sham"]
[Result "1/2-1/2"]
[ECO "B40"]
[WhiteElo "2231"]
[BlackElo "2213"]
[Annotator "NA"]
[PlyCount "92"]
[EventDate "2021.09.18"]
[EventType "team-tourn"]
[EventCountry "MKD"]
[SourceTitle "playchess.com"]
[Source "ChessBase"]
[SourceQuality "1"]
[TimeControl "40/5400+30:1800+30"]

1. e4 {[%emt 0:00:03]} c5 {[%emt 0:01:35]} 2. Nf3 {[%emt 0:00:06]} e6 {[%emt 0:
00:39]} 3. g3 {[%emt 0:00:12]} Nc6 {[%emt 0:01:16]} 4. Bg2 {[%emt 0:00:09]} Nf6
{[%emt 0:00:57]} 5. Qe2 {[%emt 0:00:37]} e5 {[%emt 0:01:06]} 6. d3 {[%emt 0:00:
58]} Be7 {[%emt 0:02:12]} 7. Bg5 {[%emt 0:14:18]} O-O {[%emt 0:01:24]} 8. O-O {
[%emt 0:01:21]} d6 {[%emt 0:04:12]} 9. h3 {[%emt 0:06:01]} Ne8 {[%emt 0:02:33]}
10. Bxe7 {[%emt 0:00:32]} Qxe7 {[%emt 0:00:30]} 11. Nc3 {[%emt 0:04:07]} Nc7 {
[%emt 0:04:44]} 12. Nd5 {[%emt 0:03:00]} Qd8 {[%emt 0:06:55]} 13. c3 {[%emt 0:
05:19]} Be6 {[%emt 0:05:49]} 14. Nxc7 {[%emt 0:11:04]} Qxc7 {[%emt 0:00:06]}
15. Nd2 {[%emt 0:00:11]} Qd7 {[%emt 0:11:15]} 16. Kh2 {[%emt 0:00:22]} d5 {
[%emt 0:02:50]} 17. f4 {[%emt 0:07:31]} f6 {[%emt 0:06:57]} 18. f5 {[%emt 0:02:
44]} Bf7 {[%emt 0:00:27]} 19. exd5 {[%emt 0:00:44]} Bxd5 {[%emt 0:01:24]} 20.
Ne4 {[%emt 0:01:11]} b6 {[%emt 0:03:03]} 21. g4 {[%emt 0:07:09]} Ne7 {[%emt 0:
07:59]} 22. Rf3 {[%emt 0:11:44]} Bb7 {[%emt 0:04:55]} 23. Rg3 {[%emt 0:01:06]}
Kh8 {[%emt 0:09:29]} 24. Bh1 {[%emt 0:00:58]} Nd5 {[%emt 0:01:53]} 25. Rd1 {
[%emt 0:06:20]} Nf4 {[%emt 0:01:54]} 26. Qf1 {[%emt 0:02:08]} Rad8 {[%emt 0:01:
05]} 27. Nf2 {[%emt 0:01:59]} Bxh1 {[%emt 0:01:07]} 28. Qxh1 {[%emt 0:00:15]}
Qa4 {[%emt 0:01:19]} 29. Rd2 {[%emt 0:05:34]} Qxa2 {[%emt 0:01:19]} 30. Ne4 {
[%emt 0:00:18]} Qa6 {[%emt 0:01:50]} 31. Qf3 {[%emt 0:00:37]} Qb7 {[%emt 0:02:
10]} 32. h4 {[%emt 0:01:09]} c4 {[%emt 0:02:52]} 33. dxc4 {[%emt 0:03:04]}
Rxd2+ {[%emt 0:00:23]} 34. Nxd2 {[%emt 0:00:02]} Qxf3 {[%emt 0:00:10]} 35. Rxf3
{[%emt 0:01:05]} Rd8 {[%emt 0:00:40]} 36. Ne4 {[%emt 0:01:04]} h6 {[%emt 0:00:
51]} 37. b4 {[%emt 0:01:17]} a5 {[%emt 0:02:40]} 38. c5 {[%emt 0:01:04]} axb4 {
[%emt 0:00:49]} 39. cxb4 {[%emt 0:00:45]} Rd4 {[%emt 0:01:21]} 40. Nd6 {
[%emt 0:00:00]} Rxb4 {[%emt 0:00:00]} 41. Ra3 {[%emt 0:09:21]} bxc5 {[%emt 0:
10:37]} 42. Ra8+ {[%emt 0:00:27]} Kh7 {[%emt 0:00:06]} 43. h5 {[%emt 0:08:52]}
Rb2+ {[%emt 0:10:19]} 44. Kh1 {[%emt 0:00:09]} Rb1+ {[%emt 0:00:20]} 45. Kh2 {
[%emt 0:00:04]} Rb2+ {[%emt 0:00:09]} 46. Kh1 {[%emt 0:00:03]} Rb1+ {[%emt 0:
17:19]} 1/2-1/2

[Event "36th European Club Cup 2021"]
[Site "Struga"]
[Date "2021.09.21"]
[Round "4.17"]
[White "Alonso Rosell, Alvar"]
[Black "Sadikhov, Ulvi"]
[Result "1-0"]
[ECO "E62"]
[WhiteElo "2566"]
[BlackElo "2509"]
[Annotator "ChessBase"]
[PlyCount "85"]
[EventDate "2021.09.18"]
[EventType "team-tourn"]
[EventCountry "MKD"]
[SourceTitle "playchess.com"]
[Source "ChessBase"]
[SourceQuality "1"]
[TimeControl "40/5400+30:1800+30"]

1. d4 {[%emt 0:00:03]} d6 {[%emt 0:00:08]} 2. Nf3 {[%emt 0:00:06]} g6 {[%emt 0:
00:32]} 3. c4 {[%emt 0:00:37]} Bg7 {[%emt 0:00:06]} 4. Nc3 {[%emt 0:00:05]} Nf6
{[%emt 0:01:49]} 5. g3 {[%emt 0:00:11]} O-O {[%emt 0:00:26]} 6. Bg2 {[%emt 0:
00:06]} c6 {[%emt 0:00:05]} 7. e4 {[%emt 0:00:07]} Bg4 {[%emt 0:05:50]} 8. h3 {
[%emt 0:00:40]} Bxf3 {[%emt 0:06:22]} 9. Bxf3 {[%emt 0:00:27]} Nfd7 {[%emt 0:
00:05]} 10. Be3 {[%emt 0:01:49]} Qb6 {[%emt 0:04:40]} 11. Rb1 {[%emt 0:07:40]}
c5 {[%emt 0:10:57]} 12. d5 {[%emt 0:05:01]} Qb4 {[%emt 0:05:01]} 13. Be2 {
[%emt 0:08:11]} Nb6 {[%emt 0:12:05]} 14. Bd2 {[%emt 0:01:47]} Bxc3 {[%emt 0:13:
37]} 15. Bxc3 {[%emt 0:00:35]} Qa4 {[%emt 0:00:05]} 16. Qc1 {[%emt 0:17:07]}
Qe8 {[%emt 0:02:04]} 17. h4 {[%emt 0:17:31]} e5 {[%emt 0:05:21]} 18. dxe6 {
[%emt 0:09:23]} Qxe6 {[%emt 0:09:02]} 19. h5 {[%emt 0:00:10]} Na4 {[%emt 0:00:
35]} 20. Qh6 {[%emt 0:03:45]} Nxc3 {[%emt 0:00:15]} 21. hxg6 {[%emt 0:00:51]}
Qxg6 {[%emt 0:00:24]} 22. bxc3 {[%emt 0:00:35]} Nc6 {[%emt 0:02:39]} 23. Qe3 {
[%emt 0:09:53]} Ne5 {[%emt 0:06:46]} 24. Rh6 {[%emt 0:04:30]} Qg7 {[%emt 0:00:
05]} 25. Rxb7 {[%emt 0:01:57]} Ng6 {[%emt 0:02:44]} 26. Rh5 {[%emt 0:01:44]}
Rfb8 {[%emt 0:01:27]} 27. Rb3 {[%emt 0:00:55]} a5 {[%emt 0:01:39]} 28. Rb5 {
[%emt 0:01:10]} Re8 {[%emt 0:00:48]} 29. f4 {[%emt 0:01:33]} f6 {[%emt 0:01:16]
} 30. Rd5 {[%emt 0:00:57]} Ne7 {[%emt 0:00:47]} 31. Rb7 {[%emt 0:01:33]} Qf8 {
[%emt 0:02:32]} 32. Rd1 {[%emt 0:00:32]} Rab8 {[%emt 0:00:52]} 33. Rb5 {
[%emt 0:00:47]} Qh6 {[%emt 0:00:29]} 34. Qf3 {[%emt 0:00:34]} Qh2 {[%emt 0:02:
49]} 35. Kd2 {[%emt 0:00:25]} Qh6 {[%emt 0:00:19]} 36. Kc2 {[%emt 0:00:27]} f5
{[%emt 0:01:42]} 37. Rxb8 {[%emt 0:02:52]} Rxb8 {[%emt 0:00:04]} 38. exf5 {
[%emt 0:00:17]} a4 {[%emt 0:00:25]} 39. Qe4 {[%emt 0:00:56]} Qf8 {[%emt 0:02:
08]} 40. Qe6+ {[%emt 0:00:00]} Kh8 {[%emt 0:00:00]} 41. f6 {[%emt 0:11:38]} Ng6
{[%emt 0:02:50]} 42. f7 {[%emt 0:07:24]} a3 {[%emt 0:00:40]} 43. Rxd6 {[%emt 0:
00:59]} 1-0

[Event "36th European Club Cup 2021"]
[Site "Struga"]
[Date "2021.09.21"]
[Round "4.18"]
[White "Ahmadzada, Ahmad"]
[Black "Henderson de La Fuente, Lance"]
[Result "1/2-1/2"]
[ECO "C54"]
[WhiteElo "2462"]
[BlackElo "2491"]
[Annotator "ChessBase"]
[PlyCount "111"]
[EventDate "2021.09.18"]
[EventType "team-tourn"]
[EventCountry "MKD"]
[SourceTitle "playchess.com"]
[Source "ChessBase"]
[SourceQuality "1"]
[TimeControl "40/5400+30:1800+30"]

1. e4 {[%emt 0:00:05]} e5 {[%emt 0:00:21]} 2. Nf3 {[%emt 0:00:11]} Nc6 {
[%emt 0:00:07]} 3. Bc4 {[%emt 0:01:00]} Bc5 {[%emt 0:04:00]} 4. c3 {[%emt 0:00:
08]} Nf6 {[%emt 0:00:06]} 5. d3 {[%emt 0:00:06]} d6 {[%emt 0:02:03]} 6. O-O {
[%emt 0:00:13]} O-O {[%emt 0:00:17]} 7. Re1 {[%emt 0:00:47]} Ne7 {[%emt 0:08:
40]} 8. Nbd2 {[%emt 0:03:01]} Ng6 {[%emt 0:00:15]} 9. Nf1 {[%emt 0:02:48]} c6 {
[%emt 0:02:38]} 10. Bb3 {[%emt 0:03:15]} Re8 {[%emt 0:04:39]} 11. Ng3 {[%emt 0:
02:33]} Be6 {[%emt 0:00:42]} 12. d4 {[%emt 0:03:47]} exd4 {[%emt 0:10:17]} 13.
cxd4 {[%emt 0:01:09]} Bb6 {[%emt 0:01:40]} 14. h3 {[%emt 0:07:44]} Bxb3 {
[%emt 0:02:14]} 15. Qxb3 {[%emt 0:00:53]} Nf8 {[%emt 0:03:44]} 16. Bd2 {
[%emt 0:07:42]} Ne6 {[%emt 0:03:22]} 17. Bc3 {[%emt 0:03:54]} Rb8 {[%emt 0:04:
19]} 18. Rad1 {[%emt 0:02:57]} d5 {[%emt 0:16:50]} 19. e5 {[%emt 0:01:20]} Ne4
{[%emt 0:00:13]} 20. Nxe4 {[%emt 0:00:48]} dxe4 {[%emt 0:00:03]} 21. Rxe4 {
[%emt 0:00:44]} Qd7 {[%emt 0:02:18]} 22. Bb4 {[%emt 0:04:15]} Qd5 {[%emt 0:00:
26]} 23. Qxd5 {[%emt 0:03:39]} cxd5 {[%emt 0:00:02]} 24. Re2 {[%emt 0:01:10]}
Rbc8 {[%emt 0:00:18]} 25. b3 {[%emt 0:08:07]} Rc6 {[%emt 0:00:30]} 26. Red2 {
[%emt 0:04:41]} Rec8 {[%emt 0:04:42]} 27. g3 {[%emt 0:02:49]} h6 {[%emt 0:00:
59]} 28. Kf1 {[%emt 0:05:52]} a5 {[%emt 0:03:37]} 29. Ba3 {[%emt 0:01:09]} a4 {
[%emt 0:01:34]} 30. Bb2 {[%emt 0:02:57]} Ba5 {[%emt 0:01:30]} 31. Re2 {[%emt 0:
01:26]} b5 {[%emt 0:03:05]} 32. Rd3 {[%emt 0:04:37]} g5 {[%emt 0:02:38]} 33. a3
{[%emt 0:04:28]} Bc3 {[%emt 0:06:31]} 34. bxa4 {[%emt 0:02:56]} bxa4 {[%emt 0:
00:19]} 35. Bxc3 {[%emt 0:00:29]} Rxc3 {[%emt 0:00:02]} 36. Red2 {[%emt 0:03:
37]} Rxd3 {[%emt 0:05:23]} 37. Rxd3 {[%emt 0:00:14]} Rc2 {[%emt 0:00:51]} 38.
Nd2 {[%emt 0:02:57]} Ra2 {[%emt 0:03:17]} 39. Ke1 {[%emt 0:07:21]} Ra1+ {
[%emt 0:03:55]} 40. Ke2 {[%emt 0:00:00]} Nc7 {[%emt 0:00:00]} 41. Nf1 {[%emt 0:
05:38]} Ra2+ {[%emt 0:06:27]} 42. Kf3 {[%emt 0:07:06]} Nb5 {[%emt 0:00:18]} 43.
Ne3 {[%emt 0:00:08]} Rxa3 {[%emt 0:04:16]} 44. Rxa3 {[%emt 0:01:27]} Nxa3 {
[%emt 0:00:06]} 45. Nxd5 {[%emt 0:00:06]} Nc2 {[%emt 0:00:34]} 46. Nc3 {
[%emt 0:02:56]} a3 {[%emt 0:09:39]} 47. d5 {[%emt 0:01:24]} Nb4 {[%emt 0:00:11]
} 48. d6 {[%emt 0:00:37]} Kf8 {[%emt 0:00:08]} 49. Kg4 {[%emt 0:03:50]} Ke8 {
[%emt 0:01:36]} 50. Kh5 {[%emt 0:02:26]} Nd3 {[%emt 0:00:26]} 51. Kxh6 {
[%emt 0:03:25]} Nxf2 {[%emt 0:00:15]} 52. h4 {[%emt 0:01:30]} gxh4 {[%emt 0:01:
51]} 53. gxh4 {[%emt 0:00:24]} Ng4+ {[%emt 0:00:24]} 54. Kg7 {[%emt 0:02:00]}
Nxe5 {[%emt 0:00:06]} 55. h5 {[%emt 0:00:19]} Ng4 {[%emt 0:00:43]} 56. d7+ {
[%emt 0:02:02]} 1/2-1/2

[Event "36th European Club Cup 2021"]
[Site "Struga"]
[Date "2021.09.21"]
[Round "4.24"]
[White "Pancevski, Filip"]
[Black "Bratkovic, Sham"]
[Result "1-0"]
[ECO "B40"]
[WhiteElo "2496"]
[BlackElo "2213"]
[Annotator "ChessBase"]
[PlyCount "59"]
[EventDate "2021.09.18"]
[EventType "team-tourn"]
[EventCountry "MKD"]
[SourceTitle "playchess.com"]
[Source "ChessBase"]
[SourceQuality "1"]
[TimeControl "40/5400+30:1800+30"]

1. e4 {[%emt 0:00:04]} c5 {[%emt 0:01:26]} 2. Nf3 {[%emt 0:00:51]} e6 {[%emt 0:
00:30]} 3. d3 {[%emt 0:00:24]} Nc6 {[%emt 0:01:17]} 4. g3 {[%emt 0:00:06]} Nf6
{[%emt 0:01:22]} 5. Bg2 {[%emt 0:00:06]} e5 {[%emt 0:01:12]} 6. O-O {[%emt 0:
16:15]} Be7 {[%emt 0:00:56]} 7. Nc3 {[%emt 0:09:14]} O-O {[%emt 0:02:15]} 8.
Nd2 {[%emt 0:10:38]} d6 {[%emt 0:03:44]} 9. Nc4 {[%emt 0:00:11]} Rb8 {[%emt 0:
06:26]} 10. a4 {[%emt 0:05:19]} a6 {[%emt 0:08:36]} 11. Ne3 {[%emt 0:11:34]} b5
{[%emt 0:10:48]} 12. axb5 {[%emt 0:00:43]} axb5 {[%emt 0:00:08]} 13. f4 {
[%emt 0:01:05]} exf4 {[%emt 0:05:04]} 14. gxf4 {[%emt 0:00:05]} Nd4 {[%emt 0:
06:22]} 15. Ne2 {[%emt 0:05:14]} Nxe2+ {[%emt 0:03:16]} 16. Qxe2 {[%emt 0:02:
29]} Qb6 {[%emt 0:04:39]} 17. b3 {[%emt 0:09:04]} Be6 {[%emt 0:06:13]} 18. Bb2
{[%emt 0:08:27]} Ne8 {[%emt 0:12:06]} 19. f5 {[%emt 0:04:49]} Bc8 {[%emt 0:01:
59]} 20. Nd5 {[%emt 0:01:20]} Qd8 {[%emt 0:00:39]} 21. Qg4 {[%emt 0:08:39]} Bf6
{[%emt 0:04:42]} 22. Nxf6+ {[%emt 0:00:40]} Nxf6 {[%emt 0:00:07]} 23. Qh4 {
[%emt 0:00:24]} Rb6 {[%emt 0:08:19]} 24. Rf3 {[%emt 0:03:31]} Nd7 {[%emt 0:02:
34]} 25. f6 {[%emt 0:00:51]} Nxf6 {[%emt 0:01:41]} 26. Rxf6 {[%emt 0:00:29]} d5
{[%emt 0:01:05]} 27. Rf4 {[%emt 0:00:34]} g5 {[%emt 0:00:06]} 28. Qg3 {[%emt 0:
00:16]} Rg6 {[%emt 0:00:12]} 29. Rf2 {[%emt 0:00:17]} d4 {[%emt 0:00:25]} 30.
Qe5 {[%emt 0:00:40]} 1-0

[Event "36th European Club Cup 2021"]
[Site "Struga"]
[Date "2021.09.21"]
[Round "4.27"]
[White "Kanyamarala, Tarun"]
[Black "Papp, Gabor"]
[Result "0-1"]
[ECO "E20"]
[WhiteElo "2275"]
[BlackElo "2599"]
[Annotator "ChessBase"]
[PlyCount "54"]
[EventDate "2021.09.18"]
[EventType "team-tourn"]
[EventCountry "MKD"]
[SourceTitle "playchess.com"]
[Source "ChessBase"]
[SourceQuality "1"]
[TimeControl "40/5400+30:1800+30"]

1. d4 {[%emt 0:00:04]} Nf6 {[%emt 0:00:07]} 2. c4 {[%emt 0:00:14]} e6 {[%emt 0:
00:05]} 3. Nc3 {[%emt 0:00:10]} Bb4 {[%emt 0:00:05]} 4. f3 {[%emt 0:00:19]} c5
{[%emt 0:00:48]} 5. d5 {[%emt 0:00:08]} b5 {[%emt 0:00:06]} 6. e4 {[%emt 0:00:
49]} O-O {[%emt 0:00:06]} 7. Nh3 {[%emt 0:00:41]} bxc4 {[%emt 0:01:03]} 8. Bxc4
{[%emt 0:01:47]} Nxd5 {[%emt 0:00:25]} 9. Bxd5 {[%emt 0:00:21]} exd5 {[%emt 0:
00:05]} 10. Qxd5 {[%emt 0:00:17]} Ba6 {[%emt 0:00:35]} 11. Bf4 {[%emt 0:01:33]}
Nc6 {[%emt 0:00:05]} 12. Kf2 {[%emt 0:02:40]} c4 {[%emt 0:00:06]} 13. Rhd1 {
[%emt 0:05:16]} Be7 {[%emt 0:00:40]} 14. Qd2 {[%emt 0:11:22]} Nb4 {[%emt 0:02:
51]} 15. Nd5 {[%emt 0:01:15]} Nxd5 {[%emt 0:34:26]} 16. exd5 {[%emt 0:00:16]}
Re8 {[%emt 0:00:31]} 17. Be3 {[%emt 0:07:15]} Rb8 {[%emt 0:01:11]} 18. Kg1 {
[%emt 0:14:44]} Bb4 {[%emt 0:10:46]} 19. Qf2 {[%emt 0:13:33]} c3 {[%emt 0:04:
35]} 20. bxc3 {[%emt 0:00:25]} Bxc3 {[%emt 0:00:04]} 21. Rab1 {[%emt 0:00:12]}
Rxb1 {[%emt 0:01:55]} 22. Rxb1 {[%emt 0:00:07]} Qa5 {[%emt 0:01:40]} 23. Ng5 {
[%emt 0:38:32]} f5 {[%emt 0:39:45]} 24. Qc2 {[%emt 0:00:00]} h6 {[%emt 0:00:00]
} 25. Nh3 {[%emt 0:00:00]} Rxe3 {[%emt 0:00:00]} 26. Rb8+ {[%emt 0:00:00]} Kf7
{[%emt 0:00:00]} 27. Qxf5+ {[%emt 0:00:00]} Bf6 {[%emt 0:00:00]} 0-1

[Event "36th European Club Cup 2021"]
[Site "Struga"]
[Date "2021.09.21"]
[Round "4.28"]
[White "Thybo, Jesper Sondergaard"]
[Black "Kanyamarala, Trisha"]
[Result "1-0"]
[ECO "D02"]
[WhiteElo "2587"]
[BlackElo "2093"]
[Annotator "ChessBase"]
[PlyCount "65"]
[EventDate "2021.09.18"]
[EventType "team-tourn"]
[EventCountry "MKD"]
[SourceTitle "playchess.com"]
[Source "ChessBase"]
[SourceQuality "1"]
[TimeControl "40/5400+30:1800+30"]

1. Nf3 {[%emt 0:00:13]} d5 {[%emt 0:00:25]} 2. g3 {[%emt 0:00:30]} Nd7 {
[%emt 0:01:17]} 3. d4 {[%emt 0:00:33]} Nb6 {[%emt 0:01:52]} 4. Nc3 {[%emt 0:00:
28]} Nf6 {[%emt 0:02:53]} 5. Bg2 {[%emt 0:00:59]} h6 {[%emt 0:05:05]} 6. a4 {
[%emt 0:02:19]} a5 {[%emt 0:10:23]} 7. b3 {[%emt 0:01:25]} e6 {[%emt 0:05:40]}
8. O-O {[%emt 0:03:52]} Bd6 {[%emt 0:06:53]} 9. Nb5 {[%emt 0:02:51]} O-O {
[%emt 0:05:06]} 10. Qd3 {[%emt 0:02:00]} Bd7 {[%emt 0:04:12]} 11. c4 {[%emt 0:
06:38]} Bxb5 {[%emt 0:05:41]} 12. axb5 {[%emt 0:00:38]} Be7 {[%emt 0:06:42]}
13. Bd2 {[%emt 0:06:56]} Bb4 {[%emt 0:11:26]} 14. Bxb4 {[%emt 0:02:18]} axb4 {
[%emt 0:00:06]} 15. c5 {[%emt 0:00:21]} Nbd7 {[%emt 0:00:21]} 16. Qd2 {[%emt 0:
04:25]} Qe7 {[%emt 0:02:20]} 17. Qf4 {[%emt 0:00:25]} e5 {[%emt 0:05:53]} 18.
Nxe5 {[%emt 0:01:42]} Nxe5 {[%emt 0:00:38]} 19. dxe5 {[%emt 0:00:36]} Nd7 {
[%emt 0:12:39]} 20. e6 {[%emt 0:08:13]} Nxc5 {[%emt 0:05:00]} 21. exf7+ {
[%emt 0:02:18]} Qxf7 {[%emt 0:00:27]} 22. Qxf7+ {[%emt 0:01:30]} Kxf7 {[%emt 0:
00:06]} 23. Bxd5+ {[%emt 0:00:16]} Ke7 {[%emt 0:00:14]} 24. Rac1 {[%emt 0:00:
41]} Nd7 {[%emt 0:04:53]} 25. Rfd1 {[%emt 0:05:24]} c6 {[%emt 0:02:13]} 26.
bxc6 {[%emt 0:00:13]} bxc6 {[%emt 0:00:07]} 27. Bxc6 {[%emt 0:00:56]} Ra7 {
[%emt 0:00:23]} 28. Bxd7 {[%emt 0:00:07]} Rxd7 {[%emt 0:00:04]} 29. Rxd7+ {
[%emt 0:00:03]} Kxd7 {[%emt 0:00:09]} 30. Rc4 {[%emt 0:00:07]} Rb8 {[%emt 0:00:
10]} 31. f4 {[%emt 0:00:17]} Kd6 {[%emt 0:00:11]} 32. Kf2 {[%emt 0:00:17]} Rb7
{[%emt 0:00:15]} 33. e4 {[%emt 0:00:26]} 1-0